bitfinex-derivatives/quotes_ETHF0:USTF0_20260121
["timestamp","ask_amount","ask_price","bid_price","bid_amount"]
[1769036466675,0.14792912,3013.2,3011.4,0.13783087]
[1769036466876,1.43910635,3013.1,3011.4,0.13783087]
[1769036467078,0.93490575,3013.0,3011.4,0.13783087]
[1769036467280,0.93490575,3012.9,3011.4,0.13783087]
[1769036467480,0.93490575,3012.8,3011.4,0.13783087]
[1769036467674,0.14792912,3013.1,3011.4,0.13783087]
[1769036467877,1.43937438,3013.0,3011.4,0.13783087]
[1769036468074,0.93509979,3012.9,3011.4,0.13783087]
[1769036468273,0.93509979,3012.8,3011.3,0.16617]
[1769036468475,0.93509979,3012.7,3011.3,0.16617]
[1769036469679,0.14792912,3012.8,3011.3,0.16617]
[1769036469981,0.93553221,3012.7,3011.3,0.16617]
[1769036470183,0.14792912,3012.8,3011.3,0.16617]
[1769036470480,0.93580858,3012.7,3011.3,0.16617]
[1769036470681,0.93578753,3012.6,3011.3,0.16617]
[1769036470881,0.14792912,3012.8,3011.3,0.16617]
[1769036471083,0.93579723,3012.7,3011.3,0.16617]
[1769036471281,0.93579723,3012.6,3011.3,0.16617]
[1769036471475,0.93579723,3012.5,3011.3,0.16617]
[1769036471675,0.14792912,3012.8,3011.3,0.16617]
[1769036471871,1.29307625,3012.7,3011.3,0.16617]
[1769036472076,0.9362812,3012.6,3011.2,2.249]
[1769036472274,0.9362812,3012.5,3011.2,2.249]
[1769036472479,0.14792912,3012.8,3011.2,2.249]
[1769036472782,1.29296867,3012.7,3011.2,2.249]
[1769036472979,0.93619968,3012.6,3011.2,2.249]
[1769036473180,0.93619968,3012.5,3011.2,2.249]
[1769036473380,0.14792912,3012.8,3011.2,2.249]
[1769036473582,1.29290172,3012.7,3011.2,2.249]
[1769036473780,0.93615146,3012.6,3011.2,2.249]
[1769036473980,0.93615146,3012.5,3011.2,2.249]
[1769036474280,0.93600673,3012.4,3011.2,2.249]
[1769036474484,0.14792912,3012.8,3011.2,2.249]
[1769036474685,1.29270322,3012.7,3011.2,2.249]
[1769036474886,1.29270322,3012.6,3011.2,2.249]
[1769036475087,0.93600787,3012.5,3011.2,2.249]
[1769036475277,0.14792912,3012.8,3011.2,2.249]
[1769036475482,1.29252463,3012.7,3011.2,2.249]
[1769036475784,0.35664571,3012.6,3011.1,2.38383087]
[1769036475984,0.14792912,3012.8,3011.1,2.38383087]
[1769036476186,1.2925246,3012.7,3011.1,2.38383087]
[1769036476380,0.3566457,3012.6,3011.1,2.38383087]
[1769036476581,0.14792912,3012.8,3011.1,2.38383087]
[1769036476779,1.29236355,3012.7,3011.2,0.13783087]
[1769036476981,1.76606705,3013.6,3011.6,0.16616]
[1769036477186,1.29261309,3013.5,3011.7,0.13783087]
[1769036477484,1.29261309,3013.4,3011.7,0.13783087]
[1769036477687,1.29261309,3013.3,3011.7,0.13783087]
[1769036477876,0.3566693,3013.2,3011.7,0.13783087]
[1769036478082,0.14792912,3013.7,3011.7,0.13783087]
[1769036478282,1.28780915,3013.6,3011.7,0.13783087]
[1769036478484,1.28780915,3013.5,3011.7,0.13783087]
[1769036478680,1.28780915,3013.4,3011.7,0.30399087]
[1769036478884,1.28780915,3013.3,3011.8,0.13783087]
[1769036479079,0.35544928,3013.2,3011.8,0.13783087]
[1769036479288,0.00293668,3013.9,3011.9,0.13783087]
[1769036479584,1.28800566,3013.8,3011.9,0.13783087]
[1769036479790,1.28800566,3013.7,3011.9,0.13783087]
[1769036479992,0.35550878,3013.6,3011.9,0.13783087]
[1769036480192,0.00293668,3013.9,3011.9,0.13783087]
[1769036480485,1.28778912,3013.8,3012.1,0.16613]
[1769036480791,1.28778912,3013.7,3012.2,2.38083087]
[1769036480990,1.28778912,3013.6,3012.2,2.38083087]
[1769036481190,0.14792912,3013.8,3011.8,0.13783087]
[1769036481488,0.14792912,3013.5,3011.9,2.243]
[1769036484689,0.14792912,3013.5,3011.9,2.38083087]
[1769036489198,0.00293668,3013.9,3012.0,0.13783087]
[1769036489387,1.28678876,3013.8,3012.0,0.13783087]
[1769036489592,1.28678876,3013.7,3012.0,0.13783087]
[1769036489795,1.28678876,3013.6,3012.0,0.13783087]
[1769036490095,0.3556395,3013.5,3012.0,0.13783087]
[1769036490292,0.1508658,3013.9,3012.0,0.13783087]
[1769036490597,1.28686832,3013.8,3012.0,0.13783087]
[1769036490796,1.28686832,3013.7,3012.0,0.13783087]
[1769036490988,1.28686832,3013.6,3012.0,0.13783087]
[1769036491193,0.35565945,3013.5,3012.0,0.13783087]
[1769036491500,0.14440279,3013.8,3012.0,0.13783087]
[1769036491698,1.2868768,3013.7,3012.0,0.13783087]
[1769036491898,0.35566172,3013.6,3012.0,0.13783087]
[1769036492098,0.14440279,3013.8,3012.0,0.13783087]
[1769036492401,1.28786425,3013.7,3012.0,0.13783087]
[1769036492595,0.35593178,3013.6,3012.0,0.13783087]
[1769036492793,0.14440279,3013.8,3012.0,0.13783087]
[1769036492994,1.28843844,3013.7,3012.3,0.94372998]
[1769036493193,0.3560933,3013.6,3012.3,0.94372998]
[1769036493500,1.08813277,3013.8,3012.3,0.94372998]
[1769036493702,1.28887012,3013.7,3012.3,0.94372998]
[1769036493899,0.35621253,3013.6,3012.3,0.94372998]
[1769036494206,1.08813277,3013.8,3012.3,0.94372998]
[1769036494500,0.94372998,3013.5,3012.0,0.14130743]
[1769036496902,0.14440279,3013.6,3012.0,0.14130743]
[1769036497094,1.28880786,3013.5,3012.0,0.14130743]
[1769036497294,0.14440279,3013.6,3012.0,0.14130743]
[1769036497494,1.28888668,3013.5,3012.0,0.14130743]
[1769036497699,0.14440279,3013.6,3012.0,0.14130743]
[1769036497891,0.14440279,3013.4,3012.0,0.14130743]
[1769036502795,0.31336947,3013.9,3012.0,0.14130743]
[1769036503000,1.28891859,3013.8,3012.0,0.14130743]
[1769036503204,1.28891859,3013.7,3012.0,0.14130743]
[1769036503399,0.35621485,3013.6,3012.0,0.14130743]
[1769036503605,0.31336947,3013.9,3012.0,0.14130743]
[1769036503803,1.28900143,3013.8,3012.0,0.14130743]
[1769036504005,1.28900143,3013.7,3012.0,0.14130743]
[1769036504306,1.28918435,3013.6,3012.0,0.14130743]
[1769036504502,0.35624337,3013.5,3012.0,0.14130743]
[1769036504707,0.31336947,3013.9,3012.0,0.14130743]
[1769036504904,1.28925442,3013.8,3012.0,0.14130743]
[1769036505106,1.28925442,3013.7,3012.0,0.14130743]
[1769036505306,1.28925442,3013.6,3012.0,0.14130743]
[1769036505506,1.28925442,3013.5,3012.0,0.14130743]
[1769036505705,0.3563141,3013.4,3012.0,0.14130743]
[1769036506005,0.31336947,3013.9,3012.0,0.14130743]
[1769036506204,1.28958967,3013.8,3012.0,0.14130743]
[1769036506408,1.28958967,3013.7,3012.0,0.14130743]
[1769036506708,1.28958967,3013.6,3012.0,0.14130743]
[1769036507011,1.28958967,3013.5,3012.0,0.14130743]
[1769036507212,0.35640393,3013.4,3012.0,0.14130743]
[1769036507402,0.31336947,3013.9,3012.0,0.14130743]
[1769036507403,0.35640393,3013.3,3012.0,0.14130743]
[1769036507603,0.31336947,3013.9,3012.0,0.14130743]
[1769036507800,1.29057304,3013.8,3012.0,0.14130743]
[1769036508004,1.29057304,3013.7,3012.0,0.14130743]
[1769036508208,1.29057304,3013.6,3012.0,0.14130743]
[1769036508402,1.29057304,3013.5,3012.0,0.14130743]
[1769036508606,1.29057304,3013.4,3012.0,0.14130743]
[1769036508806,0.3566716,3013.3,3012.0,0.14130743]
[1769036509002,0.31336947,3013.9,3012.0,0.14130743]
[1769036509203,1.29052887,3013.8,3012.0,0.14130743]
[1769036509408,1.29052887,3013.7,3012.0,0.14130743]
[1769036509709,1.29052887,3013.6,3012.0,0.14130743]
[1769036509901,1.29052887,3013.5,3012.0,0.14130743]
[1769036510101,1.29054006,3013.4,3012.0,0.14130743]
[1769036510306,0.35668367,3013.3,3012.0,0.14130743]
[1769036510512,2.07943652,3013.9,3012.0,0.14130743]
[1769036510710,1.2906469,3013.8,3012.0,0.14130743]
[1769036510910,1.2906469,3013.7,3012.0,0.14130743]
[1769036511215,1.2906469,3013.6,3012.0,0.14130743]
[1769036511514,1.2906469,3013.5,3012.0,0.14130743]
[1769036511714,1.2906469,3013.4,3012.0,0.14130743]
[1769036512014,0.35669974,3013.3,3012.0,0.14130743]
[1769036512202,0.14440279,3013.8,3012.0,0.14130743]
[1769036512407,1.29060025,3013.7,3012.0,0.14130743]
[1769036512613,1.29060025,3013.6,3012.0,0.14130743]
[1769036512816,1.29060025,3013.5,3012.0,0.14130743]
[1769036513008,1.29060025,3013.4,3012.0,0.14130743]
[1769036513207,0.3566889,3013.3,3012.0,0.14130743]
[1769036513414,0.14440279,3013.8,3012.0,0.14130743]
[1769036513614,0.14440279,3013.6,3012.0,0.14130743]
[1769036513811,1.29103908,3013.5,3012.0,0.14130743]
[1769036514007,1.29103908,3013.4,3012.0,0.14130743]
[1769036514215,0.35681019,3013.3,3012.0,0.14130743]
[1769036514414,0.14440279,3013.6,3012.0,0.14130743]
[1769036514610,1.2911005,3013.5,3012.1,2.24]
[1769036514808,1.2911005,3013.4,3012.1,2.24]
[1769036515009,0.35682717,3013.3,3012.1,2.24]
[1769036515211,0.14440279,3013.6,3012.1,2.24]
[1769036515515,1.29123556,3013.5,3012.1,2.24]
[1769036515715,1.29123556,3013.4,3012.1,2.24]
[1769036515916,0.35686452,3013.3,3012.1,2.24]
[1769036516117,0.14440279,3013.6,3012.1,2.24]
[1769036516316,1.29130694,3013.5,3012.1,2.24]
[1769036516516,1.29130694,3013.4,3012.1,2.24]
[1769036516709,0.35688465,3013.3,3012.1,2.24]
[1769036517013,0.14440279,3013.6,3012.0,0.14130743]
[1769036517216,0.14440279,3013.4,3012.2,2.239]
[1769036517519,0.14440279,3013.2,3012.0,2.239]
[1769036517819,0.14440279,3013.0,3011.3,0.16618]
[1769036518017,0.14440279,3012.8,3011.4,2.239]
[1769036518814,0.14440279,3012.8,3011.4,2.238]
[1769036519814,0.94434682,3012.3,3010.8,0.14502071]
[1769036520119,0.35635887,3012.2,3010.9,2.238]
[1769036520306,0.35611995,3012.1,3010.9,2.238]
[1769036520507,0.14640151,3012.7,3011.0,1.08936753]
[1769036520707,1.4297094,3012.6,3011.0,1.08936753]
[1769036520916,1.4297094,3012.5,3011.0,0.14502071]
[1769036521111,1.28330789,3012.4,3011.0,0.14502071]
[1769036521314,1.28330789,3012.3,3011.0,0.14502071]
[1769036521512,0.35611423,3012.2,3011.0,0.14502071]
[1769036521719,0.14640151,3012.5,3011.0,0.14502071]
[1769036521919,1.28131449,3012.4,3011.0,0.14502071]
[1769036522119,0.14640151,3012.5,3011.0,0.14502071]
[1769036522120,1.28131449,3012.3,3011.0,0.14502071]
[1769036522316,0.14640151,3012.5,3011.0,0.14502071]
[1769036522512,1.28030976,3012.4,3011.0,0.14502071]
[1769036522717,0.35528565,3012.3,3011.0,0.14502071]
[1769036522916,0.14640151,3012.5,3011.0,0.14502071]
[1769036523116,1.28033061,3012.4,3011.0,0.14502071]
[1769036523317,0.14640151,3012.5,3011.0,0.14502071]
[1769036523524,1.27957315,3012.4,3011.0,0.14502071]
[1769036523715,0.14640151,3012.5,3011.0,0.14502071]
[1769036523921,1.27957332,3012.4,3011.0,0.14502071]
[1769036524122,0.14640151,3012.5,3011.0,0.14502071]
[1769036524324,0.35491494,3012.4,3011.0,0.14502071]
[1769036524624,0.14640151,3012.5,3011.0,0.14502071]
[1769036524926,0.35491439,3012.4,3011.0,0.14502071]
[1769036525126,0.14640151,3012.5,3011.0,0.14502071]
[1769036525530,0.35477173,3012.4,3011.0,0.14502071]
[1769036525824,0.1661,3012.8,3011.0,0.14502071]
[1769036526026,1.27851528,3012.7,3011.0,0.14502071]
[1769036526220,1.27851528,3012.6,3011.0,0.14502071]
[1769036526421,0.1661,3012.8,3011.0,0.14502071]
[1769036526621,1.27793249,3012.7,3011.0,0.14502071]
[1769036526826,1.27793249,3012.6,3011.0,0.14502071]
[1769036527024,0.1661,3012.8,3011.0,0.14502071]
[1769036527223,1.27748578,3012.7,3011.0,0.14502071]
[1769036527426,1.27748578,3012.6,3011.0,0.14502071]
[1769036527626,0.35450259,3012.5,3011.0,0.14502071]
[1769036527827,0.30430925,3012.8,3011.0,0.14502071]
[1769036528028,1.27723849,3012.7,3011.0,0.14502071]
[1769036528229,1.27723849,3012.6,3011.0,0.14502071]
[1769036528420,0.30430925,3012.8,3011.0,0.14502071]
[1769036528623,1.2769229,3012.7,3011.0,0.14502071]
[1769036528822,1.2769229,3012.6,3011.0,0.14502071]
[1769036529019,0.30430925,3012.8,3011.0,0.14502071]
[1769036529227,1.27676198,3012.7,3011.0,0.14502071]
[1769036529427,0.35427815,3012.6,3011.0,0.14502071]
[1769036529633,0.30430925,3012.8,3011.0,0.14502071]
[1769036529832,1.2765452,3012.7,3011.0,0.14502071]
[1769036530036,0.35424239,3012.6,3011.0,0.14502071]
[1769036530337,0.1661,3012.7,3011.0,0.14502071]
[1769036530529,0.30432925,3012.3,3010.5,0.13606342]
[1769036530735,0.30434925,3012.1,3010.5,0.13606342]
[1769036530931,0.30434925,3012.0,3010.5,0.13606342]
[1769036533832,0.13820925,3012.0,3010.5,0.13606342]
[1769036534543,0.16615,3011.8,3010.5,0.13606342]
[1769036535045,0.16616,3011.7,3010.2,0.00284307]
[1769036535245,0.16912547,3011.7,3010.2,2.21484307]
[1769036535437,0.16912547,3011.7,3010.2,2.35090649]
[1769036535642,0.16912547,3011.7,3010.3,0.13606342]
[1769036540248,0.30733472,3011.7,3010.3,0.13606342]
[1769036542444,0.30733472,3011.7,3010.2,0.00284307]
[1769036542651,0.13820925,3011.2,3010.2,0.00284307]
[1769036542849,0.13820925,3010.9,3009.1,0.13606342]
[1769036543050,0.13820925,3010.9,3009.2,2.188]
[1769036543643,0.13820925,3010.9,3009.2,2.32406342]
[1769036543842,0.13820925,3010.9,3009.2,2.32714673]
[1769036544250,0.13820925,3010.9,3009.3,0.13606342]
[1769036544550,0.13820925,3010.9,3009.2,2.19108331]
[1769036544551,0.1662,3011.0,3009.6,0.13606342]
[1769036544854,0.13820925,3011.4,3009.6,0.13606342]
[1769036545157,0.91984182,3011.3,3009.6,0.13606342]
[1769036545452,0.16617,3011.5,3009.6,0.13606342]
[1769036545650,0.92028768,3011.4,3010.0,0.13606342]
[1769036545850,0.16617,3011.5,3010.0,0.13606342]
[1769036546250,1.08651779,3011.4,3010.0,0.13606342]
[1769036546455,0.16617,3011.4,3010.0,0.13606342]
[1769036547045,0.16618,3011.3,3010.0,0.13606342]
[1769036547452,0.16619,3011.1,3009.7,2.179]
[1769036548557,0.1662,3010.9,3009.6,2.31106342]
[1769036549358,0.13820925,3011.4,3009.6,2.31106342]
[1769036549657,1.27771733,3011.3,3009.6,2.31106342]
[1769036549857,0.92334818,3011.2,3009.6,2.31106342]
[1769036550059,0.92334818,3011.1,3009.6,2.31106342]
[1769036550261,0.13820925,3011.4,3009.6,2.31106342]
[1769036550461,1.27749664,3011.3,3009.6,2.31106342]
[1769036550650,0.92315219,3011.2,3009.6,2.31106342]
[1769036550854,0.92315219,3011.1,3009.6,2.31106342]
[1769036551063,0.13820925,3011.4,3009.6,2.31106342]
[1769036551254,1.27748043,3011.3,3009.6,2.31106342]
[1769036551455,0.92315241,3011.2,3009.6,2.31106342]
[1769036551659,0.92315241,3011.1,3009.6,2.31106342]
[1769036551862,0.13820925,3011.4,3009.6,2.31106342]
[1769036552062,1.27768694,3011.3,3009.6,2.31106342]
[1769036552259,0.9232897,3011.2,3009.6,2.31106342]
[1769036552462,0.9232897,3011.1,3009.6,2.31106342]
[1769036552652,0.13820925,3011.4,3009.6,2.31106342]
[1769036552856,1.27761937,3011.3,3009.6,2.31106342]
[1769036553057,1.2775567,3011.2,3009.6,2.31106342]
[1769036553358,0.92324026,3011.1,3009.6,2.31106342]
[1769036553558,0.13820925,3011.4,3009.6,2.31106342]
[1769036553856,1.27739479,3011.3,3009.6,2.31106342]
[1769036554060,1.27737751,3011.2,3009.6,2.31106342]
[1769036554361,0.923078,3011.1,3009.6,2.31106342]
[1769036554561,0.13820925,3011.4,3009.6,2.31106342]
[1769036554857,1.27730829,3011.3,3009.6,2.31106342]
[1769036555064,1.27730829,3011.2,3009.6,2.31106342]
[1769036555266,0.92301623,3011.1,3009.7,0.13484176]
[1769036555465,0.13567557,3011.3,3009.7,0.13484176]
[1769036555766,0.9230794,3011.2,3009.7,0.13484176]
[1769036555966,0.16617,3011.5,3009.7,0.13484176]
[1769036556168,1.27745654,3011.4,3009.7,0.13484176]
[1769036556459,1.27745654,3011.3,3009.7,0.13484176]
[1769036556666,0.92312292,3011.2,3009.7,0.13484176]
[1769036556865,0.16617,3011.5,3009.7,0.13484176]
[1769036557063,1.27768027,3011.4,3009.7,0.13484176]
[1769036557264,1.27768027,3011.3,3009.7,0.13484176]
[1769036557571,0.92328479,3011.2,3009.7,0.13484176]
[1769036557864,0.16617,3011.5,3009.7,0.13484176]
[1769036558066,1.2779571,3011.4,3009.7,0.13484176]
[1769036558265,1.2779571,3011.3,3009.7,0.13484176]
[1769036558564,0.92348488,3011.2,3009.7,0.13484176]
[1769036558766,0.16617,3011.5,3009.7,0.13484176]
[1769036558967,1.27831349,3011.4,3009.7,0.13484176]
[1769036559166,1.27831349,3011.3,3009.7,0.13484176]
[1769036559368,0.92374238,3011.2,3009.7,0.13484176]
[1769036559568,1.33686629,3011.5,3009.7,0.13484176]
[1769036559869,1.2787604,3011.4,3009.7,0.13484176]
[1769036560071,1.2787604,3011.3,3009.7,0.13484176]
[1769036560265,1.2787604,3011.2,3009.7,0.13484176]
[1769036560570,0.92406572,3011.1,3009.7,0.13484176]
[1769036560773,1.33686629,3011.5,3009.7,0.13484176]
[1769036560973,1.27930092,3011.4,3009.7,0.13484176]
[1769036561269,1.27930092,3011.3,3009.7,0.13484176]
[1769036561468,1.27930092,3011.2,3009.7,0.13484176]
[1769036561670,0.92445597,3011.1,3009.7,0.13484176]
[1769036561976,1.33686629,3011.5,3009.7,0.13484176]
[1769036562171,1.27952858,3011.4,3009.7,0.13484176]
[1769036562366,1.27952858,3011.3,3009.7,0.13484176]
[1769036562567,1.27952858,3011.2,3009.7,0.13484176]
[1769036562763,0.92462067,3011.1,3009.7,0.13484176]
[1769036562969,1.33686629,3011.5,3009.7,0.13484176]
[1769036563269,2.45039076,3011.4,3009.7,0.13484176]
[1769036563474,1.27969447,3011.3,3009.7,0.13484176]
[1769036563774,1.27969447,3011.2,3009.7,0.13484176]
[1769036563969,0.92468284,3011.1,3009.7,0.13484176]
[1769036564170,1.17069629,3011.4,3009.7,0.13484176]
[1769036564372,0.35463142,3011.3,3009.7,0.13484176]
[1769036564571,1.2795415,3011.2,3009.7,0.13484176]
[1769036564764,1.2795415,3011.1,3009.7,0.13484176]
[1769036564970,1.17069629,3011.4,3009.7,0.13484176]
[1769036565276,0.35463104,3011.3,3009.7,0.13484176]
[1769036565474,1.27964307,3011.2,3009.7,0.13484176]
[1769036565676,1.27964307,3011.1,3009.7,0.13484176]
[1769036565976,0.92501203,3011.0,3009.7,0.13484176]
[1769036566175,1.17069629,3011.4,3009.7,0.13484176]
[1769036566373,0.35482694,3011.3,3009.7,0.13484176]
[1769036566573,1.28021897,3011.2,3009.7,0.13484176]
[1769036566779,1.28021897,3011.1,3009.7,0.13484176]
[1769036566983,1.76606705,3011.6,3009.7,0.13484176]
[1769036566984,1.17069629,3011.5,3009.9,0.13484176]
[1769036567183,0.35483283,3011.4,3009.9,0.13484176]
[1769036567380,1.28036344,3011.3,3009.9,0.13484176]
[1769036567579,1.28036344,3011.2,3009.9,0.13484176]
[1769036567784,0.92553061,3011.1,3009.9,0.13484176]
[1769036567983,1.17069629,3011.5,3009.9,0.13484176]
[1769036568186,0.35492757,3011.4,3010.2,0.13484176]
[1769036568383,0.92566287,3011.3,3010.2,0.13484176]
[1769036568582,0.00296547,3011.7,3010.2,0.13484176]
[1769036568883,1.28085959,3011.6,3010.2,0.13484176]
[1769036569079,1.28085959,3011.5,3010.2,0.13484176]
[1769036569283,1.28085959,3011.4,3010.2,0.13484176]
[1769036569581,1.76606705,3012.3,3010.9,1.07991402]
[1769036569786,1.28022474,3012.2,3011.0,0.13484176]
[1769036570082,1.28022474,3012.1,3011.0,0.13484176]
[1769036570285,0.13567557,3012.7,3011.0,0.13484176]
[1769036570487,1.2661497,3012.6,3011.0,0.13484176]
[1769036570675,1.2661497,3012.5,3011.0,0.13484176]
[1769036570880,1.2661497,3012.4,3011.0,0.13484176]
[1769036571085,1.2661497,3012.3,3011.0,0.13484176]
[1769036571288,1.2661497,3012.2,3011.0,0.13484176]
[1769036571490,1.2661497,3012.1,3011.0,0.13484176]
[1769036571682,0.00263251,3012.6,3011.0,0.13484176]
[1769036571882,1.26587929,3012.5,3011.0,0.13484176]
[1769036572082,1.26588252,3012.4,3011.0,0.13484176]
[1769036572283,1.26588252,3012.3,3011.0,0.13484176]
[1769036572477,1.26588252,3012.2,3011.0,0.13484176]
[1769036572776,0.00263251,3012.6,3011.1,0.13484176]
[1769036572980,0.91185502,3012.5,3011.1,0.13484176]
[1769036573179,0.00263251,3012.6,3011.1,0.13484176]
[1769036576991,0.13830808,3012.6,3010.7,0.13484176]
[1769036577297,0.13567557,3012.4,3010.7,0.13484176]
[1769036577592,0.00263251,3012.6,3010.9,0.94507226]
[1769036577797,0.00263251,3012.6,3011.4,0.13484176]
[1769036577994,0.00263251,3012.6,3011.6,0.13484176]
[1769036578191,0.00263251,3012.6,3011.7,0.13484176]
[1769036579293,5.61421338,3014.7,3011.7,0.13484176]
[1769036579294,0.2705641,3014.0,3011.8,2.26284176]
[1769036579487,1.25245185,3013.9,3012.2,0.13484176]
[1769036579686,1.25245185,3013.8,3012.2,0.13484176]
[1769036579889,1.3937595,3013.7,3012.2,0.13484176]
[1769036580095,0.3528039,3013.6,3012.2,0.13484176]
[1769036580296,0.14131403,3013.5,3011.4,0.15136799]
[1769036580497,0.14131403,3013.5,3011.6,0.14855691]
[1769036580694,0.00344002,3013.6,3011.8,0.14855691]
[1769036581091,0.14672532,3013.5,3011.8,0.14855691]
[1769036581499,0.00344002,3013.6,3011.8,0.31470691]
[1769036581702,0.00344002,3013.6,3011.9,0.13764816]
[1769036582902,0.00344002,3013.6,3012.1,0.13764816]
[1769036583998,0.15016534,3013.6,3011.5,0.13764816]
[1769036584195,0.15016534,3013.6,3011.6,0.13764816]
[1769036584998,0.00344002,3013.6,3011.8,0.30379816]
[1769036585302,0.00344002,3013.6,3011.9,0.13764816]
[1769036585505,0.00344002,3013.6,3011.9,0.30378816]
[1769036585695,0.00344002,3013.6,3012.0,0.13764816]
[1769036586297,0.00344002,3013.6,3012.4,0.13764816]
[1769036587104,0.15016534,3013.6,3011.8,0.13764816]
[1769036587298,0.14672532,3013.4,3011.4,2.13181108]
[1769036587498,0.00344002,3013.6,3011.6,0.13764816]
[1769036587698,0.00344002,3013.6,3011.7,0.13764816]
[1769036588403,0.15016534,3013.6,3011.7,0.13764816]
[1769036588604,0.14672532,3013.2,3011.4,0.00281108]
[1769036588902,0.14672532,3013.2,3011.4,0.14045924]
[1769036589403,0.16607,3013.3,3011.4,0.14045924]
[1769036591102,0.00344002,3013.6,3011.5,0.30381816]
[1769036591309,0.16949002,3013.6,3011.6,0.13764816]
[1769036592402,0.16606,3013.5,3011.6,0.13764816]
[1769036595207,0.00344002,3013.6,3011.6,0.13764816]
[1769036596502,0.00344002,3013.6,3011.8,0.13764816]
[1769036597403,0.90004,3013.5,3011.8,0.13764816]
[1769036597709,0.00344002,3013.6,3011.8,0.13764816]
[1769036597906,0.90004095,3013.5,3011.8,0.13764816]
[1769036598208,0.00344002,3013.6,3011.8,0.13764816]
[1769036598502,1.25372509,3013.5,3011.8,0.13764816]
[1769036598710,0.14672532,3013.3,3011.4,0.14045924]
[1769036599007,0.00344002,3013.6,3011.5,0.13764816]
[1769036599204,1.2539186,3013.5,3011.6,0.13764816]
[1769036599406,1.2539186,3013.4,3011.7,0.13764816]
[1769036599713,0.00344002,3013.6,3012.2,0.13764816]
[1769036600308,0.90152921,3013.5,3012.2,0.13764816]
[1769036600508,0.00344002,3013.6,3012.2,0.13764816]
[1769036600804,0.90153398,3013.5,3012.2,0.13764816]
[1769036601108,0.00344002,3013.6,3012.7,0.94355612]
[1769036601311,0.9015504,3013.5,3012.7,0.94355612]
[1769036601511,0.00344002,3013.6,3012.7,0.94355612]
[1769036601811,1.76606705,3014.4,3013.3,0.94355612]
[1769036602004,1.25536763,3014.3,3012.9,0.94355612]
[1769036602200,1.25536763,3014.2,3012.9,0.94355612]
[1769036602404,1.25536763,3014.1,3012.9,0.94355612]
[1769036602606,0.90175441,3014.0,3012.9,0.94355612]
[1769036602909,0.00406177,3014.0,3012.9,0.94355612]
[1769036603310,1.99186467,3013.9,3012.3,1.08120428]
[1769036603513,1.25516886,3013.8,3012.3,1.08120428]
[1769036603711,1.25516886,3013.7,3012.9,0.94355612]
[1769036603904,0.00406177,3014.0,3013.2,0.94355612]
[1769036604303,0.00406177,3014.0,3012.9,0.94355612]
[1769036605117,0.14672532,3013.8,3012.4,0.16612]
[1769036606016,0.90079579,3013.7,3012.4,0.16612]
[1769036606206,0.14672532,3013.8,3012.4,0.16612]
[1769036606509,0.00406177,3014.0,3013.0,0.94355612]
[1769036606710,0.00406177,3014.0,3013.3,0.94355612]
[1769036607317,0.90164389,3013.9,3013.3,0.94355612]
[1769036607522,0.00406177,3014.0,3013.3,0.94355612]
[1769036608912,2.07878237,3014.7,3012.8,0.13764816]
[1769036609215,0.14672532,3014.3,3012.4,2.20564816]
[1769036609409,7.86580214,3015.0,3012.4,2.20564816]
[1769036609410,0.14672532,3014.1,3012.4,2.20564816]
[1769036609614,1.25253475,3014.0,3012.4,2.20564816]
[1769036609909,1.25253475,3014.0,3012.5,0.13764816]
[1769036609910,0.00279653,3014.0,3012.5,0.13764816]
[1769036610105,1.76606705,3014.7,3012.8,0.13764816]
[1769036610313,1.25247993,3014.6,3012.8,0.13764816]
[1769036610512,1.25247993,3014.5,3012.8,0.13764816]
[1769036610719,1.25247993,3014.4,3012.8,0.13764816]
[1769036611019,1.25247993,3014.3,3012.8,0.13764816]
[1769036611216,1.25247993,3014.2,3012.8,0.13764816]
[1769036611516,0.00393904,3014.4,3012.8,0.13764816]
[1769036611718,1.25192566,3014.3,3012.8,0.13764816]
[1769036611917,1.25192566,3014.2,3012.8,0.13764816]
[1769036612117,0.00393904,3014.4,3012.8,0.13764816]
[1769036612321,1.2519255,3014.3,3012.8,0.13764816]
[1769036612618,0.89813906,3014.2,3012.8,0.13764816]
[1769036612805,0.00393904,3014.4,3012.8,0.13764816]
[1769036613013,1.25167479,3014.3,3012.8,0.13764816]
[1769036613212,0.00393904,3014.4,3012.8,0.13764816]
[1769036613420,1.25152194,3014.3,3012.8,0.13764816]
[1769036613720,0.00393904,3014.4,3012.8,0.13764816]
[1769036614612,6.477,3015.0,3013.3,0.1422997]
[1769036614812,1.25144875,3014.9,3013.3,0.1422997]
[1769036615018,6.477,3015.0,3013.3,0.1422997]
[1769036615323,0.89776322,3014.9,3013.3,0.1422997]
[1769036615522,6.477,3015.0,3013.3,0.1422997]
[1769036615723,0.89725715,3014.9,3013.3,0.1422997]
[1769036616020,6.47985874,3015.0,3013.3,0.1422997]
[1769036616519,0.00285874,3015.0,3013.4,0.1422997]
[1769036618123,0.00285874,3015.0,3013.4,1.69716184]
[1769036618324,0.00285874,3015.0,3013.5,0.1422997]
[1769036618718,0.00285874,3015.0,3013.6,0.16605]
[1769036618917,1.93198705,3015.9,3013.6,0.16605]
[1769036618918,0.16592,3015.9,3013.8,0.1422997]
[1769036619127,0.14446532,3015.7,3013.8,0.1422997]
[1769036619317,1.24804727,3015.6,3013.8,0.1422997]
[1769036619522,1.24804727,3015.5,3013.8,0.1422997]
[1769036619828,0.14446532,3015.7,3013.8,0.1422997]
[1769036620122,0.00409054,3015.5,3013.8,0.1422997]
[1769036620424,0.89612974,3015.4,3013.8,0.1422997]
[1769036621123,0.14446532,3016.4,3014.6,0.1422997]
[1769036621317,1.24863428,3016.3,3014.6,0.1422997]
[1769036621618,0.14446532,3016.4,3014.6,0.1422997]
[1769036621823,0.89587151,3016.3,3014.7,0.1422997]
[1769036622029,6.78733532,3016.9,3014.7,0.1422997]
[1769036622216,1.24774316,3016.8,3014.7,0.1422997]
[1769036622523,1.24774316,3016.7,3014.7,0.1422997]
[1769036622718,0.89586845,3016.6,3014.7,0.1422997]
[1769036622921,6.79114827,3016.9,3014.7,0.1422997]
[1769036623124,0.14446532,3016.7,3014.7,0.1422997]
[1769036623321,0.89351314,3016.6,3014.7,0.1422997]
[1769036623626,0.14446532,3016.7,3014.7,0.1422997]
[1769036623831,0.89290346,3016.6,3014.7,0.1422997]
[1769036624019,0.14446532,3016.7,3014.7,0.1422997]
[1769036624222,0.8929067,3016.6,3014.7,0.1422997]
[1769036624421,0.14446532,3016.7,3014.7,0.1422997]
[1769036624614,0.89249417,3016.6,3014.7,0.1422997]
[1769036624819,0.31034532,3016.7,3014.7,0.1422997]
[1769036625119,6.48081295,3016.9,3015.1,0.1422997]
[1769036625320,0.89245038,3016.8,3015.1,0.1422997]
[1769036625521,0.14446532,3016.8,3014.8,0.1422997]
[1769036626319,0.16588,3016.8,3014.8,0.1422997]
[1769036626629,6.48081295,3016.9,3015.1,0.1422997]
[1769036628536,0.00381295,3016.9,3015.1,0.1422997]
[1769036628727,6.78729532,3017.7,3015.6,0.1422997]